bitfinex-derivatives/quotes_ETHF0:USTF0_20250518
["timestamp","ask_amount","ask_price","bid_price","bid_amount"]
[1747610953051,0.81597,2449.8,2449.7,1.5974185]
[1747610953352,2.8077,2450.0,2449.7,1.5974185]
[1747610953539,12.72061,2450.0,2449.8,0.81594]
[1747610953744,3.62362,2450.0,2449.9,0.81594]
[1747610954051,0.81594,2449.9,2449.8,0.81595]
[1747610954252,0.81594,2449.9,2449.7,0.81598]
[1747610954553,0.81597,2449.8,2449.6,0.81602]
[1747610955356,0.816,2449.8,2449.6,0.81602]
[1747610955555,1.3874,2449.9,2449.5,5.37067]
[1747610955851,1.3874,2449.9,2449.5,4.6046]
[1747610956055,2.20335,2449.9,2449.7,0.81597]
[1747610956550,0.81597,2449.8,2449.7,0.81597]
[1747610957254,0.81597,2449.8,2449.6,0.81601]
[1747610957751,0.816,2449.7,2449.6,0.81601]
[1747610957951,0.81599,2449.8,2449.6,0.81604]
[1747610958155,1.3874,2449.9,2449.5,5.37065]
[1747610958347,0.816,2449.7,2449.6,0.09218003]
[1747610959257,1.3269,2449.7,2449.6,0.81604]
[1747610959458,2.14293,2449.7,2449.6,0.81604]
[1747610959651,1.4151,2450.0,2449.9,0.81594]
[1747610959860,0.8158,2450.3,2450.1,0.81585]
[1747610960248,0.81584,2450.2,2450.1,0.81585]
[1747610960859,0.81585,2450.2,2450.1,0.81587]
[1747610961159,0.81582,2450.3,2450.2,0.81584]
[1747610962059,0.81582,2450.3,2450.2,0.94337463]
[1747610962456,2.7747,2450.7,2450.2,3.34533463]
[1747610962659,2.7747,2450.7,2450.6,0.8157]
[1747610962961,0.81566,2450.8,2450.6,0.94323463]
[1747610963257,0.81566,2450.8,2450.7,0.12753463]
[1747610963759,2.7383,2451.1,2451.0,0.81557]
[1747610964052,9.092,2451.4,2451.0,0.81557]
[1747610964053,1.3967,2451.2,2451.0,0.94306513]
[1747610964254,2.2122,2451.2,2451.1,0.12749263]
[1747610965457,0.81554,2451.1,2450.5,9.91272]
[1747610965658,0.8157,2450.7,2450.6,0.12750934]
[1747610965858,0.8157,2450.7,2450.6,0.14750934]
[1747610966056,0.8157,2450.7,2450.6,0.12750934]
[1747610966259,0.81567,2450.8,2450.6,0.12750934]
[1747610966448,1.3758,2450.7,2450.6,1.02569]
[1747610966654,0.81565,2450.8,2450.6,1.15320647]
[1747610966854,0.81565,2450.8,2450.7,0.12751647]
[1747610967061,0.81565,2450.8,2450.7,0.36751647]
[1747610967762,0.81565,2450.8,2450.7,0.36751257]
[1747610968259,0.81565,2450.8,2450.7,0.12751257]
[1747610969158,0.81565,2450.8,2450.7,0.18751257]
[1747610969561,0.8157,2450.6,2450.5,1.297]
[1747610969860,0.8157,2450.6,2450.5,1.46451551]
[1747610970052,2.14429,2450.7,2450.5,0.12751551]
[1747610970252,0.81569,2450.7,2450.6,0.94321551]
[1747610970450,0.81566,2450.8,2450.6,0.12751551]
[1747610970657,0.81566,2450.8,2450.7,0.12751551]
[1747610970861,0.81566,2450.8,2450.7,0.94318551]
[1747610971063,1.3714,2451.0,2450.7,0.12751551]
[1747610971259,2.7287,2451.1,2450.8,0.94313551]
[1747610971464,0.81559,2451.0,2450.9,0.12749969]
[1747610972062,0.81555,2451.1,2451.0,0.81557]
[1747610972364,0.81557,2451.0,2450.9,2.12479]
[1747610972565,0.81557,2451.0,2450.9,2.25228573]
[1747610972762,1.4339,2451.3,2450.9,2.25228573]
[1747610972969,0.8155,2451.2,2451.1,0.81552]
[1747610973162,2.24938,2451.3,2451.2,0.8155]
[1747610973361,2.24938,2451.3,2451.2,0.9429818]
[1747610973868,0.81548,2451.3,2451.2,0.1274818]
[1747610974365,0.81548,2451.3,2451.2,0.9429818]
[1747610974668,1.4339,2451.6,2451.2,0.9429618]
[1747610974865,1.4339,2451.6,2451.3,0.1274818]
[1747610974866,0.81545,2451.4,2451.3,0.1274818]
[1747610975266,0.81548,2451.3,2451.2,0.81549]
[1747610975464,0.81548,2451.3,2451.2,0.94296971]
[1747610975967,0.81543,2451.5,2451.3,0.81547]
[1747610976170,0.8154,2451.5,2451.4,0.12747971]
[1747610977262,0.81543,2451.5,2451.4,0.12747626]
[1747610977660,1.4339,2451.6,2451.4,0.12747626]
[1747610977869,2.24927,2451.6,2451.5,0.94287626]
[1747610978273,2.24927,2451.6,2451.5,0.12747626]
[1747610978460,0.81537,2451.6,2451.5,0.94287626]
[1747610979161,0.81541,2451.5,2451.4,0.81542]
[1747610979464,0.81541,2451.5,2451.4,0.12746966]
[1747610979871,0.81541,2451.5,2451.4,0.94290966]
[1747610980167,0.81541,2451.5,2451.4,0.12746966]
[1747610980671,0.81541,2451.5,2451.4,0.94290966]
[1747610980864,0.81539,2451.6,2451.5,0.8154]
[1747610981169,0.81539,2451.6,2451.5,0.94286966]
[1747610981568,1.4331,2451.8,2451.5,0.12746966]
[1747610981765,2.30345,2452.0,2451.9,0.81527]
[1747610981964,2.30345,2452.0,2451.9,0.12746966]
[1747610982570,2.30345,2452.0,2451.9,0.94273966]
[1747610982766,2.7087,2452.2,2452.1,0.8152]
[1747610982960,0.81513,2452.4,2452.1,3.33524008]
[1747610983268,1.4882,2452.5,2452.2,0.94260008]
[1747610983269,0.81514,2452.3,2452.2,0.94260008]
[1747610984059,0.81514,2452.3,2452.2,1.46964008]
[1747610984769,0.81514,2452.3,2452.2,1.46963201]
[1747610985171,0.81514,2452.3,2452.2,2.28480201]
[1747610985378,2.7997,2452.9,2452.2,1.50963201]
[1747610985665,1.3709,2453.0,2452.5,3.2078]
[1747610985867,1.3709,2453.0,2452.6,1.51663201]
[1747610986063,0.81501,2452.7,2452.6,0.04]
[1747610986264,0.81503,2452.7,2452.5,9.077]
[1747610986468,2.18589,2452.8,2452.5,9.077]
[1747610986663,2.18588,2452.8,2452.6,2.33164978]
[1747610986870,2.18588,2452.8,2452.6,2.20424]
[1747610987970,0.81491,2453.1,2452.7,0.12740191]
[1747610988164,0.81491,2453.1,2452.9,0.81494]
[1747610988364,0.81491,2453.1,2453.0,1.418]
[1747610988563,2.22821,2453.1,2453.0,1.418]
[1747610989171,3.67585,2453.2,2453.0,1.418]
[1747610989569,2.861,2453.2,2452.8,3.2078]
[1747610989763,0.81491,2453.0,2452.9,0.12738632]
[1747610990264,0.815,2452.7,2452.6,9.075]
[1747610990461,1.4133,2453.1,2452.6,10.75119867]
[1747610990662,0.815,2452.8,2452.7,0.12739867]
[1747610990861,0.815,2452.8,2452.7,0.13739867]
[1747610991072,0.81496,2452.9,2452.7,0.95239809]
[1747610991271,1.4196,2452.8,2452.7,0.81499]
[1747610991470,1.4196,2452.8,2452.7,0.12740751]
[1747610991667,1.4196,2452.8,2452.7,0.815]
[1747610991873,1.4196,2452.8,2452.7,0.94240358]
[1747610992067,0.00733449,2453.1,2452.7,0.12740358]
[1747610992267,0.00733449,2453.1,2452.8,1.4888]
[1747610992268,0.81495,2452.9,2452.8,1.4888]
[1747610992478,0.81493,2453.0,2452.8,2.30377]
[1747610992676,0.81494,2452.9,2452.8,1.4888]
[1747610993673,1.42693449,2453.1,2452.8,1.4888]
[1747610993674,0.81492,2453.0,2452.8,2.30377]
[1747610993979,1.4379,2452.9,2452.8,2.30377]
[1747610994178,0.00733449,2453.1,2452.9,0.81493]
[1747610994370,1.44523449,2453.1,2452.9,2.22573]
[1747610994570,0.81491,2453.0,2452.9,1.4108]
[1747610994765,1.44523449,2453.1,2452.6,9.074]
[1747610994972,0.81497,2452.8,2452.7,0.12739537]
[1747610995175,2.25286,2452.9,2452.7,0.94238537]
[1747610995478,2.25286,2452.9,2452.7,0.81499]
[1747610995672,0.81499,2452.8,2452.6,11.29981]
[1747610995873,0.81499,2452.8,2452.7,0.12739964]
[1747610996175,0.81499,2452.8,2452.7,0.12740158]
[1747610996367,2.25287,2452.9,2452.7,0.94241158]
[1747610996571,1.4379,2452.9,2452.7,0.81501]
[1747610996878,2.25285,2452.9,2452.8,1.4381]
[1747610997679,2.25285,2452.9,2452.8,1.56550001]
[1747610998177,2.25285,2452.9,2452.8,1.56549882]
[1747610998476,2.25285,2452.9,2452.8,1.56549842]
[1747610998772,2.25285,2452.9,2452.8,1.4381]
[1747610998972,0.00733449,2453.1,2452.8,1.56550217]
[1747610999176,0.00733449,2453.1,2452.8,1.4381]
[1747610999177,0.81494,2452.9,2452.8,1.4381]
[1747610999370,0.81494,2452.9,2452.8,2.39043711]
[1747610999971,0.81494,2452.9,2452.8,2.3904673]
[1747611000177,0.81494,2452.9,2452.8,9.2103973]
[1747611000482,0.81504,2452.6,2452.5,13.09487]
[1747611000684,0.81504,2452.6,2452.5,0.12741152]
[1747611001487,1.346,2452.6,2452.5,0.94248152]
[1747611001675,0.81504,2452.6,2452.5,0.12741171]
[1747611002079,2.16104,2452.6,2452.5,0.12741171]
[1747611002274,2.16104,2452.6,2452.0,1.19982873]
[1747611002275,0.8152,2452.1,2452.0,1.19982873]
[1747611002574,0.8152,2452.1,2452.0,1.32726197]
[1747611003081,4.023,2452.1,2452.0,1.32726197]
[1747611003576,3.2078,2452.1,2451.6,3.54707]
[1747611003776,0.8153,2451.8,2451.7,0.12745556]
[1747611003983,0.81547,2451.3,2451.2,1.3763]
[1747611004179,0.81547,2451.3,2451.2,0.12747293]
[1747611005183,2.28147,2451.3,2451.2,0.12747293]
[1747611005375,0.8155,2451.2,2451.1,1.19982873]
[1747611005684,2.2163,2451.2,2451.1,1.32731948]
[1747611006274,1.4008,2451.2,2451.1,2.14285948]
[1747611006469,1.4122,2451.4,2451.3,0.81547]
[1747611006686,1.3732,2451.7,2451.5,0.81539]
[1747611006986,1.3732,2451.7,2451.6,1.52909075]
[1747611006987,2.18854,2451.7,2451.6,1.52909075]
[1747611007184,2.18854,2451.7,2451.6,1.4016]
[1747611007376,2.18854,2451.7,2451.6,0.12746635]
[1747611007880,1.3732,2451.7,2451.3,9.074]
[1747611008080,0.81537,2451.6,2451.4,2.34449192]
[1747611008285,1.3732,2451.7,2451.5,0.12747192]
[1747611008586,0.81534,2451.7,2451.6,1.52907192]
[1747611008885,0.81534,2451.7,2451.6,0.12747192]
[1747611009078,1.4008,2451.8,2451.3,1.4523]
[1747611009285,0.8154,2451.5,2451.4,0.12747343]
[1747611009678,0.81547,2451.3,2451.1,2.26784]
[1747611009878,0.81547,2451.3,2451.2,0.12748618]
[1747611010180,4.698,2451.6,2451.2,0.12748618]
[1747611010378,0.81542,2451.5,2451.3,2.39524618]
[1747611010581,0.81542,2451.5,2451.4,0.12748618]
[1747611010778,3.2078,2451.6,2451.0,3.2078]
[1747611010979,1.4835,2451.4,2451.1,0.12748592]
[1747611011180,0.81547,2451.3,2451.2,0.12749093]
[1747611011787,4.02327,2451.3,2451.2,0.12749093]
[1747611012079,0.81557,2451.0,2450.9,9.075]
[1747611012285,0.81557,2451.0,2450.9,9.20249716]
[1747611012677,0.81557,2451.0,2450.9,11.49839716]
[1747611013079,0.81557,2451.0,2450.9,11.498401]
[1747611013386,0.81557,2451.0,2450.9,1.60780295]
[1747611013584,0.81556,2451.1,2450.9,2.42340295]
[1747611013884,0.81557,2451.0,2450.9,1.4803]
[1747611014085,0.81557,2451.0,2450.9,2.42340004]
[1747611014288,0.81557,2451.0,2450.9,1.60780004]
[1747611015483,4.02337,2451.0,2450.9,0.12750004]
[1747611015686,0.81575,2450.5,2450.2,10.5048]
[1747611015887,0.81575,2450.5,2450.3,1.57432617]
[1747611016078,0.81575,2450.5,2450.4,0.12752617]
[1747611016280,0.81573,2450.6,2450.4,0.12752617]
[1747611016582,0.81573,2450.6,2450.5,1.57432617]
[1747611017790,0.81573,2450.6,2450.5,0.12752617]
[1747611018094,0.81577,2450.4,2450.3,1.4688]
[1747611018286,1.4714,2450.8,2450.6,0.81568]
[1747611018592,9.056,2451.0,2450.3,4.6766]
[1747611018792,0.81572,2450.6,2450.5,0.81573]
[1747611019090,9.057,2451.0,2450.8,0.81561]
[1747611019290,9.87257,2451.0,2450.9,1.4688]
[1747611019494,9.87257,2451.0,2450.7,0.81565]
[1747611019495,2.03902,2450.9,2450.4,0.81576]
[1747611019785,1.4052,2450.9,2450.5,1.59631846]
[1747611019986,0.81559,2451.0,2450.9,0.81559]
[1747611020187,11.1192,2451.3,2451.2,0.8155]
[1747611020384,18.77,2451.8,2451.3,0.81545]
[1747611020584,18.77,2451.8,2451.2,0.12748709]
[1747611020585,3.2078,2451.7,2451.2,0.81548]
[1747611020786,0.81544,2451.4,2451.3,0.1274841]
[1747611021094,0.8155,2451.2,2451.1,9.06]
[1747611021588,0.8155,2451.2,2451.1,9.18749413]
[1747611021893,0.81547,2451.3,2451.1,0.94301413]
[1747611022092,13.5186,2451.4,2451.1,1.3823]
[1747611022093,0.8155,2451.2,2451.1,1.3823]
[1747611022292,0.8155,2451.2,2451.1,2.19784]
[1747611022695,0.8155,2451.2,2451.1,1.3823]
[1747611024693,0.8155,2451.2,2451.1,2.32533213]
[1747611024893,2.30458,2451.3,2451.2,0.8155]
[1747611025087,0.81542,2451.5,2451.3,0.81545]
[1747611025292,0.81554,2451.1,2451.0,2.7521]
[1747611025497,0.81553,2451.2,2451.0,4.25208777]
[1747611025795,0.81553,2451.2,2451.1,0.12748777]
[1747611025994,0.81553,2451.2,2450.9,3.2078]
[1747611025995,1.3501,2451.4,2450.6,10.4225]
[1747611026200,0.81553,2451.2,2451.1,1.3625]
[1747611026402,0.81553,2451.2,2451.1,2.17804]
[1747611027294,0.81553,2451.2,2451.1,1.3625]
[1747611027494,0.81553,2451.2,2451.1,1.48999658]
[1747611027900,0.81553,2451.2,2451.1,2.30553658]
[1747611028103,0.81547,2451.4,2451.2,0.81548]
[1747611028403,0.81547,2451.4,2451.3,1.52598373]
[1747611029401,0.81547,2451.4,2451.3,2.34145373]
[1747611029805,1.484,2451.7,2451.3,1.52598373]
[1747611030005,4.6918,2452.2,2451.4,13.84977094]
[1747611030207,4.6918,2452.2,2451.8,0.81529]
[1747611030208,0.81528,2451.9,2451.8,0.81529]
[1747611030409,0.81528,2451.9,2451.8,0.12747094]
[1747611030706,0.81528,2451.9,2451.8,1.54897094]
[1747611031802,0.81528,2451.9,2451.8,1.4215]
[1747611032008,0.81528,2451.9,2451.8,1.54895864]
[1747611032202,4.02299,2452.2,2452.0,0.81522]
[1747611032407,6.0446,2452.9,2452.1,1.54895864]
[1747611032599,0.81507,2452.6,2452.2,12.39525864]
[1747611032800,0.81507,2452.6,2452.4,0.81508]
[1747611033006,6.0446,2452.9,2452.5,1.54375864]
[1747611033308,3.058,2452.9,2452.6,9.18745864]
[1747611033504,3.058,2452.9,2452.8,4.02277]
[1747611033698,3.058,2452.9,2452.8,4.15022864]
[1747611033899,3.058,2452.9,2452.8,5.53392864]
[1747611034100,0.00733449,2453.1,2453.0,0.81491]
[1747611034303,7.33561524,2453.6,2453.0,9.20545864]
[1747611034504,7.33561524,2453.6,2453.5,4.02254]
[1747611034709,7.33561524,2453.6,2453.5,10.05019864]
[1747611034908,7.33561524,2453.6,2453.5,9.23545864]
[1747611035506,7.33561524,2453.6,2453.5,10.65175864]
[1747611035706,8.15032524,2453.6,2453.5,10.65175864]
[1747611035905,2.50558303,2453.6,2453.5,0.12745864]
[1747611036110,0.81475,2453.5,2453.3,11.2999]
[1747611036406,0.81477,2453.4,2453.3,10.4851]
[1747611036705,0.81485,2453.2,2452.9,3.2078]
[1747611036913,0.81487,2453.1,2453.0,10.61047765]
[1747611037510,0.81487,2453.1,2453.0,10.61048763]
[1747611038410,0.81487,2453.1,2453.0,10.4831]
[1747611039411,2.8946,2453.5,2453.0,10.4831]
[1747611039611,0.81487,2453.1,2453.0,10.4831]
[1747611039906,2.8946,2453.5,2453.0,10.4831]
[1747611039907,3.70935,2453.5,2453.3,0.81479]
[1747611040110,3.2078,2453.7,2453.4,1.4636]
[1747611040414,0.81472,2453.6,2453.4,2.27836]
[1747611040614,0.81474,2453.5,2453.4,1.4636]
[1747611041110,0.81472,2453.6,2453.4,2.27835]
[1747611041503,9.042,2453.9,2453.4,1.4636]
[1747611041712,2.03666,2453.8,2453.1,3.2078]
[1747611041903,3.2078,2453.7,2453.1,10.4993]
[1747611042104,0.81477,2453.5,2453.3,0.8148]
[1747611042308,0.81477,2453.5,2453.4,1.4143]
[1747611042510,0.81473,2453.6,2453.4,2.22905]
[1747611043310,6.0019,2454.0,2453.4,4.6221]
[1747611043613,0.8147,2453.7,2453.5,0.81472]
[1747611043914,0.81466,2453.8,2453.6,11.26699]
[1747611044106,0.81466,2453.8,2453.6,12.66009]
[1747611044310,0.81466,2453.8,2453.6,12.65009]
[1747611044801,0.81463,2453.9,2453.6,11.8354]
[1747611045005,0.81463,2453.9,2453.7,0.81465]
[1747611045905,0.81463,2453.9,2453.6,11.8354]
[1747611046106,0.81463,2453.9,2453.8,0.81464]
[1747611046414,0.81461,2453.9,2453.6,11.8354]
[1747611046614,0.81461,2453.9,2453.8,0.81464]
[1747611047915,0.81467,2453.8,2453.7,0.81467]
[1747611048211,11.1916,2454.2,2453.6,11.8354]
[1747611048415,2.29762,2453.9,2453.6,11.8354]
[1747611048613,2.29763,2453.9,2453.7,0.81464]
[1747611048914,0.81464,2453.8,2453.7,0.81464]
[1747611049114,0.81463,2453.9,2453.8,0.81464]
[1747611049318,1.483,2454.0,2453.6,11.8334]
[1747611049614,2.29759,2454.0,2453.9,0.81461]
[1747611049814,2.29759,2454.0,2453.6,11.8334]
[1747611050012,2.29759,2454.0,2453.8,0.81461]
[1747611050211,0.81461,2453.9,2453.8,0.81461]
[1747611050408,0.81465,2453.8,2453.7,0.81465]
[1747611050615,0.81467,2453.7,2453.6,2.7974]
[1747611050809,0.81467,2453.7,2453.6,9.036]
[1747611051011,0.81467,2453.7,2453.6,9.87071]
[1747611051319,0.81467,2453.7,2453.6,0.83471]
[1747611051714,0.81467,2453.7,2453.6,2.17911]
[1747611052423,1.4776,2454.2,2454.1,0.81454]
[1747611052712,1.3699,2454.4,2454.3,0.81447]
[1747611052910,1.3536,2454.7,2454.6,0.81437]
[1747611053221,2.16794,2454.7,2454.6,0.81437]
[1747611053418,1.3536,2454.7,2454.6,0.81437]
[1747611054415,1.3699,2454.8,2454.7,0.81434]
[1747611054615,0.81433,2454.8,2454.6,3.2078]
[1747611054814,0.81434,2454.7,2454.6,12.2418]
[1747611055017,0.81441,2454.6,2454.4,3.60752]
[1747611055318,0.81436,2454.7,2454.6,0.81437]
[1747611055518,0.81436,2454.7,2454.6,2.20987]
[1747611055712,0.81436,2454.7,2454.6,1.3955]
[1747611055914,0.81437,2454.6,2454.5,9.034]
[1747611056110,0.81437,2454.6,2454.3,12.2358]
[1747611056111,1.3792,2454.6,2454.3,3.2078]
[1747611056311,0.81447,2454.3,2454.2,1.3955]
[1747611056512,2.8582,2454.5,2454.2,10.56682114]
[1747611056719,3.2078,2455.0,2454.5,0.8144]
[1747611057021,1.3792,2454.9,2454.5,0.8144]
[1747611057223,1.3792,2454.9,2454.6,0.81437]
[1747611057417,0.81436,2454.7,2454.3,1.3955]
[1747611057722,0.81438,2454.6,2454.5,0.8144]
[1747611057921,0.81438,2454.6,2454.5,0.12730901]
[1747611058121,3.2078,2454.7,2454.2,1.3452]
[1747611058424,0.81441,2454.5,2454.4,9.034]
[1747611058623,0.81441,2454.5,2454.4,0.12731899]
[1747611058814,2.23391,2454.5,2454.4,0.12731899]
[1747611059119,1.4195,2454.5,2454.4,0.94175899]
[1747611059514,13.6654,2455.0,2454.4,0.12731899]
[1747611059712,13.6654,2455.0,2454.5,2.28690899]
[1747611059713,0.81437,2454.6,2454.5,2.28690899]
[1747611060214,0.81437,2454.7,2454.5,2.28690535]
[1747611060420,0.81437,2454.7,2454.6,0.94168532]
[1747611060619,0.81437,2454.7,2454.6,2.37178532]
[1747611060917,0.81437,2454.7,2454.6,1.55741532]
[1747611061119,0.81437,2454.7,2454.6,1.55740519]
[1747611061418,2.03549,2455.2,2454.7,0.81434]
[1747611061622,1.3985,2454.9,2454.8,0.12730309]
[1747611061827,2.21277,2454.9,2454.8,0.12730309]
[1747611062120,2.21277,2454.9,2454.0,1.19982873]
[1747611062121,0.81454,2454.1,2454.0,1.19982873]
[1747611062419,0.81454,2454.1,2454.0,1.3271632]
[1747611062619,0.81454,2454.1,2454.0,2.7572632]
[1747611062812,0.81454,2454.1,2454.0,12.6048332]
[1747611063011,1.3985,2454.2,2454.1,0.81454]
[1747611063209,2.21303,2454.2,2454.1,0.12733447]
[1747611063619,2.21303,2454.2,2454.0,12.47749873]
[1747611063821,2.21303,2454.2,2454.1,0.94187677]
[1747611064123,0.81454,2454.1,2454.0,2.62992873]
[1747611064321,2.19654,2454.1,2454.0,1.3271671]
[1747611064518,2.19654,2454.1,2454.0,0.12733837]
[1747611065023,2.19654,2454.1,2454.0,0.12735417]
[1747611065318,5.25454,2454.1,2454.0,0.12735417]
[1747611065509,5.25454,2454.1,2453.8,1.35]
[1747611065708,0.81457,2454.0,2453.9,0.12734775]
[1747611065919,2.19657,2454.0,2453.9,0.12734775]
[1747611067520,1.382,2454.0,2453.9,0.12734912]
[1747611067721,2.19663,2454.0,2453.9,0.12734912]
[1747611069419,0.81466,2453.9,2453.8,9.033]
[1747611069622,1.3527,2453.9,2453.8,9.97505488]
[1747611069831,3.2078,2454.2,2454.1,0.8146]
[1747611070121,3.058,2454.4,2454.3,0.81453]
[1747611070422,0.81438,2454.8,2454.6,0.81441]
[1747611070622,0.81438,2454.8,2454.7,0.8144]
[1747611071019,2.18658,2454.8,2454.6,0.81441]
[1747611071219,2.18658,2454.8,2454.7,0.8144]
[1747611071421,4.58,2454.8,2454.0,5.24432]
[1747611071617,0.81451,2454.4,2454.1,10.51641268]
[1747611071821,0.81453,2454.3,2454.2,0.94188268]
[1747611072023,0.81453,2454.3,2454.2,1.4243704]
[1747611072221,3.87253,2454.3,2454.2,1.4243704]
[1747611072922,7.85253,2454.3,2454.2,1.4243704]
[1747611073121,4.79453,2454.3,2454.2,1.42439874]
[1747611073826,4.79453,2454.3,2454.2,0.12734102]
[1747611074624,2.5899,2454.3,2454.2,0.94191102]
[1747611075013,2.5899,2454.3,2454.2,0.94189695]
[1747611075215,2.5899,2454.3,2454.2,0.97189695]
[1747611076819,2.5899,2454.3,2454.2,0.84457]
[1747611077018,3.40443,2454.3,2454.2,2.26881322]
[1747611077218,3.40443,2454.3,2454.2,2.23881322]
[1747611077219,4.0099,2454.3,2454.2,2.23881322]
[1747611077416,4.82443,2454.3,2454.2,1.42424322]
[1747611077614,8.03223,2454.3,2454.2,1.42424322]
[1747611078119,4.82443,2454.3,2454.2,1.42424322]
[1747611078726,4.0099,2454.3,2454.2,0.12734059]
[1747611079330,4.82446,2454.3,2454.2,0.12734059]
[1747611080730,4.82446,2454.3,2454.2,0.94191059]
[1747611081232,4.82446,2454.3,2454.2,0.12734059]
[1747611081531,4.82446,2454.3,2454.2,0.94191059]
[1747611082027,2.5899,2454.3,2454.2,0.94191059]
[1747611082227,11.20789,2454.5,2454.4,0.8145]
[1747611082429,11.20789,2454.5,2454.4,0.94184059]
[1747611082631,2.19089,2454.5,2454.4,0.94184059]
[1747611083029,12.9218,2454.6,2454.5,0.81447]
[1747611083222,9.714,2454.6,2454.5,2.26041059]
[1747611083532,0.81428,2455.1,2454.6,2.0361]
[1747611083733,2.19064,2455.2,2455.1,0.81427]
[1747611083934,2.19064,2455.2,2455.1,0.94161059]
[1747611084334,2.19064,2455.2,2455.1,0.94156472]
[1747611084529,2.19064,2455.2,2455.1,0.94156552]
[1747611085037,3.2078,2455.3,2455.1,0.94156552]
[1747611085038,4.02203,2455.3,2455.1,0.94156552]
[1747611085226,4.02203,2455.3,2455.2,1.56089552]
[1747611085836,4.022,2455.3,2455.2,2.37513552]
[1747611086036,4.022,2455.3,2455.2,1.56089552]
[1747611086433,4.022,2455.3,2455.2,1.56088498]
[1747611086827,4.022,2455.3,2455.2,0.12728498]
[1747611087029,4.022,2455.3,2454.7,5.6881]
[1747611087030,0.81444,2454.6,2454.5,1.19982873]
[1747611087831,9.82744,2454.6,2454.5,1.19982873]
[1747611088234,3.058,2454.6,2454.5,1.19982873]
[1747611088434,3.058,2454.6,2454.5,14.25010873]
[1747611088635,3.058,2454.6,2454.5,14.24010873]
[1747611089038,3.058,2454.6,2454.5,15.66710873]
[1747611089239,0.81428,2455.1,2454.9,0.81432]
[1747611089430,2.23508,2455.1,2455.0,0.81431]
[1747611089631,1.4208,2455.1,2454.5,8.90774687]
[1747611089839,0.81444,2454.6,2454.5,4.35294687]
[1747611090232,4.83774,2454.6,2454.5,1.29494687]
[1747611090735,0.81453,2454.4,2454.2,2.01438873]
[1747611090933,1.3733,2454.3,2454.2,2.01438873]
[1747611091233,2.18784,2454.3,2454.2,1.19982873]
[1747611091431,4.63869,2454.6,2454.2,1.19982873]
[1747611091432,2.6025,2454.6,2454.2,1.19982873]
[1747611091628,2.6025,2454.6,2454.3,1.4095]
[1747611091629,4.79026,2454.6,2454.3,1.4095]
[1747611091829,3.9758,2454.6,2454.3,1.4095]
[1747611092025,0.81454,2454.3,2454.2,1.19982873]
[1747611092230,3.87253,2454.4,2454.2,0.81455]
[1747611092438,3.87253,2454.4,2454.3,1.4095]
[1747611092642,0.81458,2454.2,2454.1,0.81459]
[1747611092838,0.81458,2454.2,2454.1,1.4095]
[1747611093232,1.3733,2454.3,2453.8,3.2078]
[1747611093537,0.81468,2453.9,2453.8,1.4095]
[1747611093739,0.81467,2454.0,2453.8,10.4275]
[1747611093938,0.81468,2453.9,2453.8,10.4275]
[1747611094243,0.81468,2453.9,2453.8,1.4095]
[1747611094441,3.37317,2454.0,2453.8,1.4095]
[1747611094645,0.81468,2453.9,2453.8,1.4095]
[1747611094845,0.81475,2453.7,2453.6,9.018]
[1747611095030,1.4247,2453.9,2453.8,0.81471]
[1747611095234,2.5585,2454.0,2453.9,0.81468]
[1747611096144,1.2162,2454.0,2453.9,0.81468]
[1747611096342,9.8256,2454.2,2453.6,12.43332]
[1747611096541,2.7344,2454.3,2454.2,0.81458]
[1747611096738,0.81446,2454.6,2454.5,0.81448]
[1747611096943,0.81449,2454.5,2454.4,0.8145]
[1747611097143,1.4345,2454.6,2454.5,0.81448]
[1747611097339,0.81447,2454.6,2454.5,0.81446]
[1747611097546,0.81447,2454.6,2454.4,9.83348]
[1747611097840,5.29103,2454.7,2454.6,0.81445]
[1747611098044,0.81445,2454.6,2454.5,2.20807]
[1747611098747,0.81445,2454.6,2454.5,1.3936]
[1747611099047,2.24895,2454.6,2454.5,0.12731921]
[1747611099446,11.25995,2454.6,2454.5,0.12731921]
[1747611100249,2.03621,2454.5,2453.2,43.10527]
[1747611100550,0.81468,2453.9,2453.7,2.18702]
[1747611100746,0.81468,2453.9,2453.8,1.32718224]
[1747611100947,4.75728,2453.9,2453.8,1.32718224]
[1747611101247,7.81528,2453.9,2453.8,1.3271944]
[1747611101642,7.81528,2453.9,2453.8,0.12736567]
[1747611103249,7.81528,2453.9,2453.8,0.12736381]
[1747611103453,0.81485,2453.4,2453.3,9.02]
[1747611103653,3.2078,2453.7,2453.3,0.12738096]
[1747611103856,2.21769,2453.6,2453.5,0.81481]
[1747611104044,2.21769,2453.6,2453.5,0.12738096]
[1747611104245,11.22769,2453.6,2453.5,0.12738096]
[1747611104549,11.22769,2453.6,2453.5,1.47798096]
[1747611104750,2.21769,2453.6,2453.5,1.47798096]
[1747611104949,11.22769,2453.6,2453.5,1.47798096]
[1747611105149,11.22769,2453.6,2453.5,1.47797662]
[1747611105851,3.2078,2453.7,2453.6,0.81478]
[1747611106152,2.5548,2453.9,2453.6,0.12737662]
[1747611106153,1.3021,2453.9,2453.6,0.12737662]
[1747611106346,9.01,2454.1,2453.7,1.44467662]
[1747611106549,0.81465,2454.0,2453.9,0.81467]
[1747611107146,0.81465,2454.0,2453.9,0.94202167]
[1747611107651,0.81463,2454.1,2453.9,0.12735167]
[1747611107853,0.81463,2454.1,2454.0,0.12735167]
[1747611108151,3.2078,2454.6,2454.5,0.81448]
[1747611108354,3.2078,2454.6,2454.5,9.95283167]
[1747611109044,3.2078,2454.6,2454.5,9.95278821]
[1747611109246,1.2214,2455.0,2454.5,9.13830792]
[1747611109443,0.81427,2455.2,2455.0,0.81431]
[1747611109647,9.009,2455.2,2454.6,1.2817]